fUSD/lending_fUSD_20260121
["ID","MTS","AMOUNT","RATE_DAILY","PERIOD"]
[402952185,1769015440477,-1836.0,0.00016791,2]
[402952186,1769015440497,-1129.91,0.00016793,2]
[402952187,1769015440506,-3100.0,0.000168,6]
[402952188,1769015440515,-655.0,0.00016801,2]
[402952190,1769015440524,-689.0,0.00016801,2]
[402952191,1769015440534,-472.0,0.00016801,2]
[402952192,1769015440543,-500.0,0.00016801,2]
[402952193,1769015440553,-616.92694258,0.00016801,2]
[402952194,1769015440562,-500.0,0.00016801,2]
[402952195,1769015440572,-538.59735373,0.00016801,2]
[402952196,1769015440581,-532.0,0.00016817,2]
[402952197,1769015440591,-1730.0,0.00016824,2]
[402952198,1769015440600,-150.0,0.00016841,2]
[402952199,1769015440610,-500.0,0.00016841,2]
[402952200,1769015440621,-500.0,0.00016841,2]
[402952201,1769015440631,-152.84284681,0.00016841,2]
[402952202,1769015440640,-500.0,0.00016841,2]
[402952203,1769015440650,-158.4322296,0.00016841,2]
[402952204,1769015440659,-150.0,0.00016841,2]
[402952205,1769015440668,-500.0,0.00016841,2]
[402952206,1769015440678,-150.0,0.00016841,2]
[402952207,1769015440687,-500.0,0.00016841,2]
[402952208,1769015440696,-168.0,0.0001685,2]
[402952209,1769015440706,-655.0,0.00016856,2]
[402952210,1769015440716,-689.0,0.00016856,2]
[402952211,1769015440725,-472.0,0.00016856,2]
[402952212,1769015440734,-500.0,0.00016856,2]
[402952213,1769015440744,-500.0,0.00016856,2]
[402952214,1769015440754,-804.0,0.00016857,2]
[402952215,1769015440763,-282.10765682,0.0001686,2]
[402952216,1769015440772,-500.0,0.00016877,2]
[402952217,1769015440782,-522.0,0.0001689,2]
[402952218,1769015440791,-500.0,0.00016896,2]
[402952219,1769015440800,-500.0,0.00016896,2]
[402952220,1769015440810,-500.0,0.00016896,2]
[402952221,1769015440819,-150.0,0.00016896,2]
[402952222,1769015440828,-500.0,0.00016896,2]
[402952223,1769015440837,-150.0,0.00016896,2]
[402952224,1769015440847,-500.0,0.00016896,2]
[402952225,1769015440856,-6300.0,0.000169,6]
[402952226,1769015440866,-655.0,0.00016911,2]
[402952227,1769015440875,-689.0,0.00016911,2]
[402952228,1769015440884,-472.0,0.00016911,2]
[402952229,1769015440894,-500.0,0.00016911,2]
[402952230,1769015440903,-500.0,0.00016911,2]
[402952231,1769015440913,-996.0,0.00016923,2]
[402952232,1769015440922,-151.0,0.00016926,2]
[402952233,1769015440931,-161.64,0.00016928,2]
[402952234,1769015440941,-7725.78573334,0.00016929,2]
[402952235,1769015440951,-16281.88274728,0.00016929,2]
[402952236,1769015440960,-415.05169828,0.00016931,2]
[402952237,1769015440970,-3605.87629101,0.00016937,2]
[402952238,1769015440980,-500.0,0.00016951,2]
[402952239,1769015440989,-500.0,0.00016951,2]
[402952240,1769015440999,-500.0,0.00016951,2]
[402952241,1769015441009,-150.0,0.00016951,2]
[402952242,1769015441018,-500.0,0.00016951,2]
[402952243,1769015441028,-150.0,0.00016951,2]
[402952244,1769015441037,-500.0,0.00016951,2]
[402952245,1769015441046,-655.0,0.00016965,2]
[402952246,1769015441055,-689.0,0.00016965,2]
[402952247,1769015441064,-472.0,0.00016965,2]
[402952248,1769015441073,-500.0,0.00016965,2]
[402952249,1769015441083,-500.0,0.00016965,2]
[402952250,1769015441092,-158.86220082,0.00016973,2]
[402952251,1769015441102,-250.0,0.00017,2]
[402952252,1769015441111,-505.87876924,0.00017005,2]
[402952253,1769015441120,-500.0,0.00017005,2]
[402952254,1769015441130,-344.0,0.00017005,2]
[402952255,1769015441139,-150.0,0.00017005,2]
[402952256,1769015441148,-500.0,0.00017005,2]
[402952257,1769015441157,-150.0,0.00017005,2]
[402952258,1769015441166,-500.0,0.00017005,2]
[402952259,1769015441180,-2056.64341002,0.00017016,2]
[402952260,1769015441189,-655.0,0.0001702,2]
[402952261,1769015441198,-689.0,0.0001702,2]
[402952262,1769015441208,-472.0,0.0001702,2]
[402952263,1769015441217,-500.0,0.0001702,2]
[402952264,1769015441227,-500.0,0.0001702,2]
[402952265,1769015441236,-1203.58317457,0.00017066,2]
[402952266,1769015441246,-1129.91,0.00017067,2]
[402952267,1769015441256,-282.10765682,0.00017068,2]
[402952268,1769015441265,-29988.4666,0.00017073,2]
[402952269,1769015441274,-1000.0,0.00017073,2]
[402952270,1769015441283,-655.0,0.00017075,2]
[402952271,1769015441292,-689.0,0.00017075,2]
[402952272,1769015441302,-472.0,0.00017075,2]
[402952273,1769015441312,-240.19453195,0.00017075,2]
[402952274,1769015441321,-500.0,0.00017075,2]
[402952275,1769015441331,-7725.78573334,0.00017091,2]
[402952276,1769015441340,-16281.88274728,0.00017091,2]
[402952277,1769015441349,-181.0,0.00017105,2]
[402952278,1769015441359,-415.05169828,0.00017125,2]
[402952279,1769015441368,-655.0,0.0001713,2]
[402952280,1769015441377,-689.0,0.0001713,2]
[402952281,1769015441386,-472.0,0.0001713,2]
[402952282,1769015441396,-500.0,0.0001713,2]
[402952283,1769015441405,-575.71488184,0.00017134,2]
[402952284,1769015441415,-500.0,0.00017172,2]
[402952285,1769015441424,-500.0,0.00017172,2]
[402952286,1769015441433,-500.0,0.00017172,2]
[402952287,1769015441442,-500.0,0.00017172,2]
[402952288,1769015441452,-500.0,0.00017173,2]
[402952289,1769015441461,-500.0,0.00017173,2]
[402952290,1769015441470,-605.56754048,0.00017173,2]
[402952291,1769015441479,-500.0,0.00017173,2]
[402952292,1769015441489,-500.0,0.00017173,2]
[402952293,1769015441498,-500.0,0.00017173,2]
[402952294,1769015441507,-500.0,0.00017173,2]
[402952295,1769015441517,-541.31841079,0.00017173,2]
[402952296,1769015441526,-543.26843644,0.00017173,2]
[402952297,1769015441537,-500.94467747,0.00017173,2]
[402952298,1769015441546,-279.18333591,0.00017173,2]
[402952299,1769015441555,-500.0,0.00017173,2]
[402952300,1769015441564,-167.87587796,0.00017173,2]
[402952301,1769015441574,-500.0,0.00017173,2]
[402952302,1769015441583,-169.41492416,0.00017173,2]
[402952303,1769015441592,-500.0,0.00017173,2]
[402952304,1769015441601,-500.0,0.00017173,2]
[402952305,1769015441610,-217.33264691,0.00017173,2]
[402952306,1769015441619,-500.0,0.00017173,2]
[402952307,1769015441627,-166.15547505,0.00017173,2]
[402952308,1769015441637,-500.0,0.00017173,2]
[402952309,1769015441646,-500.0,0.00017173,2]
[402952310,1769015441655,-500.0,0.00017173,2]
[402952311,1769015441664,-500.0,0.00017173,2]
[402952312,1769015441673,-500.0,0.00017173,2]
[402952313,1769015441682,-500.0,0.00017173,2]
[402952314,1769015441691,-500.0,0.00017173,2]
[402952315,1769015441700,-500.0,0.00017173,2]
[402952316,1769015441709,-488.97132533,0.00017173,2]
[402952317,1769015441718,-500.0,0.00017173,2]
[402952318,1769015441727,-500.0,0.00017173,2]
[402952319,1769015441736,-500.0,0.00017173,2]
[402952320,1769015441745,-500.0,0.00017173,2]
[402952321,1769015441755,-500.0,0.00017173,2]
[402952322,1769015441764,-500.0,0.00017173,2]
[402952323,1769015441774,-500.0,0.00017173,2]
[402952324,1769015441783,-502.57997666,0.00017173,2]
[402952325,1769015441792,-500.0,0.00017173,2]
[402952326,1769015441802,-500.0,0.00017173,2]
[402952327,1769015441811,-163.65383635,0.00017173,2]
[402952328,1769015441820,-166.57282596,0.00017173,2]
[402952329,1769015441829,-500.0,0.00017173,2]
[402952330,1769015441838,-500.53278225,0.00017173,2]
[402952331,1769015441848,-500.0,0.00017173,2]
[402952332,1769015441857,-500.0,0.00017173,2]
[402952333,1769015441867,-162.82594348,0.00017173,2]
[402952334,1769015441876,-500.0,0.00017178,2]
[402952335,1769015441885,-181.0,0.00017183,2]
[402952336,1769015441895,-655.0,0.00017185,2]
[402952337,1769015441904,-689.0,0.00017185,2]
[402952338,1769015441913,-472.0,0.00017185,2]
[402952339,1769015441922,-500.0,0.00017185,2]
[402952340,1769015441931,-181.0,0.00017198,2]
[402952341,1769015441940,-655.0,0.00017239,2]
[402952342,1769015441953,-689.0,0.00017239,2]
[402952343,1769015441963,-472.0,0.00017239,2]
[402952344,1769015441973,-389.38461163,0.00017239,2]
[402952345,1769015441983,-7725.78573334,0.00017253,2]
[402952346,1769015441993,-16281.88274728,0.00017253,2]
[402952347,1769015442002,-500.0,0.00017256,2]
[402952348,1769015442012,-553.64373807,0.00017271,2]
[402952349,1769015442022,-181.08010149,0.00017271,2]
[402952350,1769015442031,-500.73381826,0.00017273,2]
[402952351,1769015442041,-257.99612183,0.00017273,2]
[402952352,1769015442050,-500.0,0.00017273,2]
[402952353,1769015442060,-550.70733566,0.00017273,2]
[402952354,1769015442070,-500.15189466,0.00017273,2]
[402952355,1769015442080,-500.0,0.00017273,2]
[402952356,1769015442089,-500.12560695,0.00017273,2]
[402952357,1769015442099,-500.0,0.00017273,2]
[402952358,1769015442108,-500.0,0.00017273,2]
[402952359,1769015442118,-500.0,0.00017273,2]
[402952360,1769015442127,-500.79549494,0.00017273,2]
[402952361,1769015442136,-500.0,0.00017273,2]
[402952362,1769015442145,-500.0,0.00017273,2]
[402952363,1769015442155,-500.0,0.00017273,2]
[402952364,1769015442164,-150.0,0.00017273,2]
[402952365,1769015442176,-500.0,0.00017273,2]
[402952366,1769015442185,-500.0,0.00017273,2]
[402952367,1769015442195,-500.0,0.00017273,2]
[402952368,1769015442204,-159.96427776,0.00017273,2]
[402952369,1769015442215,-500.99033758,0.00017273,2]
[402952370,1769015442224,-500.0,0.00017273,2]
[402952372,1769015442234,-500.0,0.00017273,2]
[402952374,1769015442244,-500.0,0.00017273,2]
[402952375,1769015442253,-282.10765682,0.00017276,2]
[402952376,1769015442263,-655.0,0.00017294,2]
[402952377,1769015442272,-689.0,0.00017294,2]
[402952378,1769015442281,-472.0,0.00017294,2]
[402952380,1769015442290,-415.05169828,0.00017319,2]
[402952381,1769015442299,-1129.91,0.00017341,2]
[402952382,1769015442308,-655.0,0.00017349,2]
[402952384,1769015442317,-689.0,0.00017349,2]
[402952386,1769015442327,-472.0,0.00017349,2]
[402952387,1769015442340,-181.0,0.00017382,2]
[402952388,1769015442349,-564.1323032,0.00017391,2]
[402952389,1769015442358,-155.96,0.00017397,2]
[402952390,1769015442370,-9500.0,0.000174,6]
[402952391,1769015442379,-655.0,0.00017404,2]
[402952392,1769015442388,-689.0,0.00017404,2]
[402952393,1769015442398,-472.0,0.00017404,2]
[402952394,1769015442407,-7725.78573334,0.00017415,2]
[402952395,1769015442417,-16281.88274728,0.00017415,2]
[402952396,1769015442428,-181.0,0.00017439,2]
[402952397,1769015442438,-300.0,0.00017454,2]
[402952399,1769015442448,-655.0,0.00017458,2]
[402952402,1769015442457,-689.0,0.00017458,2]
[402952404,1769015442466,-472.0,0.00017458,2]
[402952406,1769015442475,-181.0,0.00017462,2]
[402952408,1769015442485,-282.10765682,0.00017484,2]
[402952410,1769015442494,-12700.0,0.000175,6]
[402952412,1769015442503,-415.05169828,0.00017513,2]
[402952414,1769015442513,-709.55289874,0.00017513,2]
[402952416,1769015442522,-473.09047259,0.00017513,2]
[402952418,1769015442531,-661.26785417,0.00017513,2]
[402952420,1769015442541,-175.11,0.00017533,2]
[402952421,1769015442550,-155.95,0.00017535,2]
[402952422,1769015442559,-1247.12,0.00017564,2]
[402952423,1769015442569,-7725.78573334,0.00017576,2]
[402952424,1769015442578,-16281.88274728,0.00017576,2]
[402952425,1769015442588,-188.17,0.0001759,2]
[402952426,1769015442597,-15900.0,0.000176,6]
[402952427,1769015442607,-1129.91,0.00017615,2]
[402952428,1769015442616,-1566.0,0.00017628,2]
[402952429,1769015442625,-233.33,0.00017643,2]
[402952430,1769015442635,-150.00569123,0.00017653,2]
[402952431,1769015442645,-161.64,0.00017657,2]
[402952432,1769015442655,-181.0,0.00017689,2]
[402952433,1769015442664,-233.33,0.00017689,2]
[402952434,1769015442674,-155.96,0.0001769,2]
[402952435,1769015442687,-282.10765682,0.00017692,2]
[402952436,1769015442696,-3100.0,0.000177,6]
[402952437,1769015442705,-181.0,0.000177,2]
[402952438,1769015442714,-415.05169828,0.00017706,2]
[402952439,1769015442729,-1001.85923341,0.00017721,2]
[402952440,1769015442739,-1012.65188463,0.00017721,2]
[402952441,1769015442748,-500.0,0.00017721,2]
[402952442,1769015442758,-1004.22603028,0.00017721,2]
[402952443,1769015442768,-1000.0,0.00017721,2]
[402952444,1769015442778,-1000.0,0.00017721,2]
[402952445,1769015442787,-1000.0,0.00017721,2]
[402952446,1769015442797,-1000.0,0.00017721,2]
[402952447,1769015442806,-601.78347398,0.00017721,2]
[402952448,1769015442816,-238.78771743,0.00017721,2]
[402952449,1769015442826,-500.47917453,0.00017721,2]
[402952450,1769015442835,-502.02252621,0.00017721,2]
[402952451,1769015442845,-1000.0,0.00017721,2]
[402952452,1769015442854,-1000.0,0.00017721,2]
[402952453,1769015442864,-1000.0,0.00017721,2]
[402952454,1769015442873,-1000.0,0.00017721,2]
[402952455,1769015442883,-1000.0,0.00017721,2]
[402952456,1769015442892,-906.24694652,0.00017721,2]
[402952457,1769015442902,-1000.0,0.00017721,2]
[402952458,1769015442912,-1000.0,0.00017721,2]
[402952459,1769015442922,-500.73210702,0.00017721,2]
[402952460,1769015442931,-1000.0,0.00017721,2]
[402952461,1769015442941,-1000.0,0.00017721,2]
[402952462,1769015442951,-1000.0,0.00017721,2]
[402952463,1769015442960,-1000.0,0.00017721,2]
[402952464,1769015442970,-1000.0,0.00017721,2]
[402952465,1769015442979,-1000.0,0.00017721,2]
[402952466,1769015442988,-1000.0,0.00017721,2]
[402952467,1769015442997,-1000.0,0.00017721,2]
[402952468,1769015443007,-1000.0,0.00017727,2]
[402952469,1769015443016,-1000.0,0.00017732,2]
[402952470,1769015443025,-181.0,0.00017735,2]
[402952471,1769015443035,-233.33,0.00017736,2]
[402952472,1769015443044,-1000.0,0.00017737,2]
[402952473,1769015443053,-7725.78573334,0.00017738,2]
[402952474,1769015443063,-16281.88274728,0.00017738,2]
[402952475,1769015443072,-1000.0,0.00017739,2]
[402952477,1769015443081,-1000.0,0.00017741,2]
[402952479,1769015443091,-1000.0,0.00017755,2]
[402952480,1769015443103,-1000.0,0.00017762,2]
[402952481,1769015443113,-1000.0,0.00017767,2]
[402952482,1769015443123,-150.0,0.00017771,2]
[402952483,1769015443132,-1000.0,0.00017771,2]
[402952484,1769015443142,-181.0,0.00017772,2]
[402952485,1769015443152,-679.29564048,0.00017776,2]
[402952486,1769015443161,-150.0,0.00017781,2]
[402952487,1769015443171,-233.33,0.00017782,2]
[402952488,1769015443183,-1000.0,0.00017793,2]
[402952489,1769015443193,-795.95763591,0.00017793,2]
[402952490,1769015443202,-1000.0,0.00017797,2]
[402952491,1769015443213,-150.0,0.00017799,2]
[402952492,1769015443222,-221.23640684,0.00017799,2]
[402952493,1769015443232,-3100.0,0.000178,6]
[402952494,1769015443242,-181.0,0.00017803,2]
[402952495,1769015443254,-200.0,0.00017804,2]
[402952496,1769015443263,-500.0,0.00017807,2]
[402952497,1769015443272,-500.0,0.00017808,2]
[402952498,1769015443282,-150.0,0.00017808,2]
[402952499,1769015443291,-574.12855637,0.00017819,2]
[402952500,1769015443301,-187.78006525,0.00017819,2]
[402952501,1769015443311,-1000.0,0.00017821,2]
[402952502,1769015443320,-500.0,0.00017821,2]
[402952503,1769015443329,-1000.0,0.00017821,2]
[402952504,1769015443338,-250.0,0.00017821,2]
[402952505,1769015443348,-731.45242292,0.00017821,2]
[402952506,1769015443358,-1000.0,0.00017821,2]
[402952507,1769015443368,-1000.0,0.00017821,2]
[402952508,1769015443378,-500.0,0.00017821,2]
[402952509,1769015443387,-586.66357325,0.00017821,2]
[402952510,1769015443397,-1000.0,0.00017822,2]
[402952511,1769015443406,-1105.0,0.00017823,2]
[402952512,1769015443415,-233.33,0.00017829,2]
[402952513,1769015443425,-127009.25320044,0.0001783,2]
[402952514,1769015443434,-1120.78317,0.0001783,2]
[402952515,1769015443443,-1000.0,0.00017837,2]
[402952516,1769015443453,-1000.0,0.00017845,2]
[402952517,1769015443463,-1000.0,0.00017848,2]
[402952518,1769015443472,-1000.0,0.00017849,2]
[402952519,1769015443482,-1000.0,0.0001785,2]
[402952520,1769015443492,-1000.0,0.00017852,2]
[402952521,1769015443505,-1000.0,0.00017854,2]
[402952522,1769015443514,-1000.0,0.00017855,2]
[402952523,1769015443523,-200.0,0.00017856,2]
[402952524,1769015443533,-1000.0,0.00017856,2]
[402952525,1769015443543,-1000.0,0.00017858,2]
[402952526,1769015443552,-150.0,0.00017862,2]
[402952527,1769015443562,-500.0,0.00017863,2]
[402952528,1769015443571,-150.0,0.00017863,2]
[402952529,1769015443581,-828.99538789,0.00017865,2]
[402952530,1769015443591,-1000.0,0.00017866,2]
[402952531,1769015443601,-177.51312027,0.00017873,2]
[402952532,1769015443610,-233.33,0.00017875,2]
[402952533,1769015443621,-1000.0,0.0001788,2]
[402952534,1769015443631,-1120.78317,0.0001788,2]
[402952535,1769015443641,-1129.91,0.00017888,2]
[402952536,1769015443651,-1566.0,0.00017891,2]
[402952537,1769015443661,-1488.7540736,0.00017891,2]
[402952538,1769015443670,-2626.33865348,0.00017891,2]
[402952539,1769015443680,-3928.84555461,0.00017891,2]
[402952540,1769015443690,-5315.8644,0.00017891,2]
[402952541,1769015443699,-1000.0,0.00017893,2]
[402952542,1769015443708,-150.0,0.00017897,2]
[402952543,1769015443717,-10000.0,0.00017899,2]
[402952544,1769015443727,-204.04236409,0.00017899,2]
[402952545,1769015443737,-161.64,0.00017899,2]
[402952546,1769015443747,-309.99258171,0.000179,2]
[402952547,1769015443757,-309.99258169,0.000179,2]
[402952548,1769015443766,-774.34722517,0.000179,3]
[402952549,1769015443776,-415.05169828,0.000179,2]
[402952550,1769015443786,-282.10765682,0.000179,2]
[402952551,1769015443795,-25000.0,0.000179,3]
[402952552,1769015443805,-9275.31066381,0.000179,3]
[402952553,1769015443814,-3100.0,0.000179,6]
[402952554,1769015443824,-7725.78573334,0.000179,2]
[402952555,1769015443834,-195.92069658,0.000179,3]
[402952556,1769015443844,-16281.88274728,0.000179,2]
[402952557,1769015443854,-816.87543449,0.000179,2]
[402952558,1769015443864,-1000.0,0.00017912,2]
[402952559,1769015443874,-1000.0,0.00017915,2]
[402952560,1769015443883,-1000.0,0.00017917,2]
[402952561,1769015443895,-500.0,0.00017918,2]
[402952562,1769015443905,-200.49238854,0.00017918,2]
[402952563,1769015443914,-1000.0,0.0001792,2]
[402952564,1769015443923,-233.33,0.00017921,2]
[402952565,1769015443933,-795.95763591,0.00017924,2]
[402952566,1769015443942,-150.0,0.00017927,2]
[402952567,1769015443952,-1120.78317,0.0001793,2]
[402952568,1769015443962,-250.0,0.00017938,2]
[402952569,1769015443971,-1000.0,0.00017938,2]
[402952570,1769015443980,-652.63568286,0.00017939,2]
[402952571,1769015443989,-300.0,0.00017939,2]
[402952572,1769015443999,-300.0,0.00017939,2]
[402952573,1769015444008,-600.0,0.00017939,2]
[402952574,1769015444018,-250.0,0.00017939,2]
[402952575,1769015444027,-2500.0,0.00017939,2]
[402952576,1769015444037,-300.0,0.00017939,2]
[402952577,1769015444047,-195.0,0.00017939,2]
[402952578,1769015444056,-1680.0,0.00017952,2]
[402952579,1769015444066,-1000.0,0.00017963,2]
[402952580,1769015444076,-1000.0,0.00017967,2]
[402952581,1769015444086,-354.60410027,0.00017968,2]
[402952582,1769015444097,-193.0,0.00017968,2]
[402952583,1769015444107,-5000.0,0.00017968,2]
[402952584,1769015444118,-250.0,0.00017968,2]
[402952585,1769015444130,-233.33,0.00017968,2]
[402952586,1769015444139,-500.0,0.0001797,2]
[402952587,1769015444149,-500.0,0.0001797,2]
[402952588,1769015444159,-500.0,0.0001797,2]
[402952589,1769015444169,-694.631145,0.0001797,2]
[402952590,1769015444182,-1000.0,0.0001797,2]
[402952591,1769015444192,-1000.0,0.0001797,2]
[402952592,1769015444201,-1000.0,0.0001797,2]
[402952593,1769015444212,-1000.0,0.0001797,2]
[402952594,1769015444221,-1321.57411122,0.0001797,2]
[402952595,1769015444233,-500.0,0.00017972,2]
[402952596,1769015444253,-500.0,0.00017972,2]
[402952597,1769015444263,-15055.0,0.00017973,2]
[402952598,1769015444273,-30935.0,0.00017973,2]
[402952599,1769015444282,-150.0,0.00017973,2]
[402952600,1769015444292,-150.0,0.00017977,2]
[402952601,1769015444302,-3927.202912,0.00017978,2]
[402952602,1769015444311,-1120.78317,0.0001798,2]
[402952603,1769015444320,-500.0,0.00017982,2]
[402952604,1769015444330,-150.0,0.00017984,2]
[402952605,1769015444339,-1000.0,0.00017986,2]
[402952606,1769015444348,-1202.74527863,0.0001799,2]
[402952607,1769015444357,-1202.74527863,0.0001799,2]
[402952608,1769015444367,-266.60276913,0.0001799,2]
[402952609,1769015444377,-1000.0,0.00017991,2]
[402952610,1769015444387,-1000.0,0.00017991,2]
[402952611,1769015444396,-8921.441108,0.00017992,2]
[402952612,1769015444406,-151.0,0.00017992,2]
[402952613,1769015444415,-150.0,0.00017992,2]
[402952614,1769015444425,-133619.6800583,0.00017995,2]
[402952615,1769015444434,-226.832427,0.00017995,2]
[402952616,1769015444444,-5495.2275844,0.00017995,2]
[402952617,1769015444454,-1000.0,0.00017995,2]
[402952618,1769015444718,-1000.0,0.00017996,2]
[402952619,1769015444729,-1000.0,0.00017997,2]
[402952620,1769015444739,-151.0,0.00017997,2]
[402952621,1769015444749,-191.10157024,0.00017998,2]
[402952622,1769015444758,-150.0,0.00017999,2]
[402952623,1769015444768,-252.48903335,0.00017999,2]
[402952624,1769015444777,-1110.78417922,0.00017999,5]
[402952625,1769015444787,-179.10022984,0.00017999,5]
[402952626,1769015444796,-1110.78417922,0.00017999,5]
[402952627,1769015444806,-1112.32457965,0.00017999,5]
[402952628,1769015444815,-300.0,0.00017999,2]
[402952629,1769015444824,-299.2286621,0.00017999,2]
[402952630,1769015444835,-300.0,0.00017999,2]
[402952631,1769015444844,-300.0,0.00017999,2]
[402952632,1769015444854,-500.0,0.00017999,2]
[402952633,1769015444864,-500.0,0.00017999,2]
[402952634,1769015444873,-500.0,0.00017999,2]
[402952635,1769015444883,-500.0,0.00017999,2]
[402952636,1769015444893,-500.0,0.00017999,2]
[402952637,1769015444903,-500.0,0.00017999,2]
[402952638,1769015444912,-500.0,0.00017999,2]
[402952639,1769015444923,-500.0,0.00017999,2]
[402952640,1769015444932,-645.1150797,0.00017999,2]
[402952641,1769015444943,-300.0,0.00017999,2]
[402952642,1769015444953,-666.0,0.00017999,2]
[402952643,1769015444964,-150.0,0.00017999,2]
[402952644,1769015444974,-300.0,0.00017999,2]
[402952645,1769015444983,-3820853.93286951,0.00018,2]
[402952648,1769015445453,-163029.08584878,0.00018,2]
[402952649,1769015445466,-1428.96368315,0.00018,2]
[402952650,1769015445477,-877.41330311,0.00018,2]
[402952651,1769015445489,-1213.16121457,0.00018,2]
[402952652,1769015445500,-183087.20353398,0.00018,2]
[402952656,1769015446530,-394.60412329,0.00016343,2]
[402952657,1769015446540,-500.0,0.00016528,2]
[402952658,1769015446551,-1503.31991108,0.000169,2]
[402952659,1769015446631,-3196.57596446,0.00018,2]
[402952660,1769015446644,-4182.2300939,0.00018,2]
[402952661,1769015446655,-4678.72038961,0.00018,2]
[402952662,1769015446666,-2375.00000007,0.00018,2]
[402952663,1769015446677,-1586.22960659,0.00018,2]
[402952664,1769015446688,-7095667.3390124,0.00018,2]
[402952665,1769015446699,-966.94445376,0.00018,2]
[402952666,1769015446743,-500.0,0.00016528,2]
[402952667,1769015446753,-500.0001,0.00018,2]
[402952668,1769015446764,-355.71546679,0.00018,2]
[402952669,1769015447534,-1.7e-07,0.00018,2]
[402952670,1769015447656,-23489.64735935,0.00018,2]
[402952671,1769015448310,200.6,0.00015469,2]
[402952672,1769015448386,150.0,0.00016253,2]
[402952673,1769015448792,-150.0,0.00016308,2]
[402952674,1769015448802,-200.0,0.00016363,2]
[402952675,1769015448812,-500.0,0.00016528,2]
[402952676,1769015448822,-500.0,0.00016528,2]
[402952677,1769015448831,-500.0,0.00016999,2]
[402952678,1769015448841,-500.0,0.00017807,2]
[402952679,1769015448850,-3828.40854552,0.00018,2]
[402952680,1769015448861,-4400.29087718,0.00018,2]
[402952681,1769015448873,-16612.80989397,0.00018,2]
[402952682,1769015449419,-6756.48853091,0.00018,2]
[402952683,1769015449430,-908.22440825,0.00018,2]
[402952684,1769015449530,-2400.4530701,0.00018,2]
[402952685,1769015449605,-15736.0023197,0.00018,2]
[402952686,1769015449698,-1322.500002,0.00018,2]
[402952687,1769015449711,-276308.39968608,0.00018,2]
[402952688,1769015449721,-165.98494936,0.00018,2]
[402952689,1769015449731,-152.533101,0.00018,2]
[402952690,1769015449740,-151.0,0.00018,2]
[402952691,1769015449751,-1120.78316,0.00018,2]
[402952692,1769015449760,-1120.78317,0.00018,2]
[402952693,1769015449770,-151.0,0.00018,2]
[402952694,1769015449779,-151.0,0.00018,2]
[402952695,1769015449788,-151.0,0.00018,2]
[402952696,1769015449798,-151.0,0.00018,2]
[402952697,1769015449807,-233.33,0.00018014,2]
[402952698,1769015449818,-155.96,0.00018024,2]
[402952699,1769015449828,-466.0,0.00018026,2]
[402952700,1769015449837,-233.33,0.00018061,2]
[402952701,1769015449847,-200.0,0.00018073,2]
[402952702,1769015449856,-195.0,0.00018085,2]
[402952703,1769015449866,-600.0,0.00018085,2]
[402952704,1769015449877,-334.5472959,0.00018092,2]
[402952705,1769015449887,-233.33,0.00018107,2]
[402952706,1769015449896,-1566.0,0.00018125,2]
[402952707,1769015449906,-233.33,0.00018154,2]
[402952708,1769015449916,-1129.91,0.00018162,2]
[402952709,1769015449925,-233.33,0.000182,2]